fUST/lending_fUST_20260404
["ID","MTS","AMOUNT","RATE_DAILY","PERIOD"]
[419690765,1775293494797,500.0,0.00034711,120]
[419690766,1775293495025,500.0,0.00034711,120]
[419690767,1775293495248,500.0,0.00034711,120]
[419690768,1775293495472,500.0,0.00034711,120]
[419690769,1775293495692,500.0,0.00034711,120]
[419690770,1775293495915,595.424958,0.00034711,120]
[419690771,1775293603160,290.0,9.001e-05,2]
[419690777,1775293762542,500.844,0.00031507,120]
[419690786,1775293831882,-5000.0,0.00013292,2]
[419690787,1775293831892,-1000.0,0.00013699,2]
[419690788,1775293831905,-300.0,0.00023108,2]
[419690789,1775293831914,-202.0,0.00023108,2]
[419690790,1775293831924,-737.0,0.00023109,2]
[419690791,1775293831933,-184.0,0.00023109,2]
[419690792,1775293831943,-440.0,0.00023109,2]
[419690793,1775293831952,-270.83333333,0.00023968,2]
[419690794,1775293831962,-190.29732455,0.00024681,2]
[419690795,1775293831971,-161.845656,0.000247,7]
[419690796,1775293831980,-454.3517465,0.00024854,2]
[419690797,1775293831989,-500.0,0.00025043,2]
[419690798,1775293831998,-500.0,0.00025043,2]
[419690799,1775293832008,-210.89322877,0.00025043,2]
[419690800,1775293832016,-500.0,0.00025043,2]
[419690801,1775293832025,-500.0,0.00025043,2]
[419690802,1775293832036,-500.0,0.00025043,2]
[419690804,1775293832045,-500.0,0.00025043,2]
[419690806,1775293832054,-397.62691696,0.00025043,2]
[419690807,1775293832063,-1709.78973731,0.00025044,2]
[419690809,1775293832075,-2751.07633631,0.00025044,2]
[419690813,1775293832100,-1087.86425197,0.00025044,2]
[419690927,1775293840667,-6640.00000163,0.00025044,2]
[419691049,1775293842291,-1208.7291331,0.00025044,2]
[419691069,1775293843352,-49639.19531536,0.00025044,2]
[419691070,1775293843365,-39916.6,0.00025044,2]
[419691071,1775293843406,-3343.35704555,0.00025044,2]
[419691072,1775293843418,-2436.72738521,0.00025044,2]
[419691076,1775293846334,-32398.21095497,0.00025044,2]
[419691077,1775293846345,-7585.38308484,0.00025044,2]
[419691078,1775293974300,2170.54113917,0.00032877,120]
[419691080,1775294298355,500.0,0.00034761,120]
[419691081,1775294298612,502.66401945,0.00034761,120]
[419691132,1775295032160,-1000.0,0.00013699,2]
[419691134,1775295032170,-225.44358781,0.00022872,2]
[419691136,1775295032180,-351.90335035,0.00022872,2]
[419691138,1775295032189,-270.83333333,0.00023,2]
[419691140,1775295032199,-1000.0,0.00024019,30]
[419691141,1775295032209,-184.0,0.00024257,2]
[419691142,1775295032219,-440.0,0.00024257,2]
[419691143,1775295032228,-200.05421962,0.00024655,2]
[419691145,1775295032240,-151.5,0.00024655,2]
[419691148,1775295032249,-151.5,0.00024655,2]
[419691151,1775295032258,-201.65797236,0.00024655,2]
[419691154,1775295032267,-2.57058881,0.00024829,2]
[419691276,1775295038356,-1282.0720074,0.00024744,2]
[419691277,1775295038365,-1210037.35143601,0.00024744,2]
[419691278,1775295038377,-6635.43748096,0.00024744,2]
[419691353,1775295040904,-712.22,0.00024744,2]
[419691360,1775295040959,-5142.75770885,0.00024744,2]
[419691362,1775295040971,-1333.65335123,0.00024744,2]
[419691597,1775295043386,-14559.34357715,0.00024744,2]
[419691612,1775295043598,-461579.2364458,0.00024744,2]
[419691614,1775295043608,-173.50825543,0.00024829,2]
[419691616,1775295043618,-578.20924308,0.00024829,2]
[419691618,1775295043628,-501.11398684,0.00024829,2]
[419691620,1775295043638,-2312.83697232,0.00024829,2]
[419691623,1775295043648,-500.0,0.00024843,2]
[419691625,1775295043658,-450.78127967,0.00024843,2]
[419691626,1775295043668,-500.0,0.00024843,2]
[419691628,1775295043678,-154.09101497,0.00024843,2]
[419691630,1775295043687,-500.0,0.00024843,2]
[419691632,1775295043697,-462.66352246,0.00024843,2]
[419691634,1775295043706,-28575.75201365,0.00024844,2]
[419691636,1775295043716,-200.0,0.00024853,2]
[419691638,1775295043726,-325.0256955,0.00024854,2]
[419691640,1775295043736,-500.0,0.00024925,2]
[419691642,1775295043746,-151.5,0.00024925,2]
[419691644,1775295043757,-500.0,0.00024925,2]
[419691646,1775295043766,-500.0,0.00024925,2]
[419691648,1775295043775,-219.86207707,0.00024925,2]
[419691650,1775295043785,-500.0,0.00024925,2]
[419691652,1775295043794,-500.0,0.00024925,2]
[419691654,1775295043804,-500.0,0.00024925,2]
[419691656,1775295043814,-500.0,0.00024925,2]
[419691658,1775295043824,-500.0,0.00024925,2]
[419691660,1775295043834,-500.0,0.00024925,2]
[419691662,1775295043844,-500.0,0.00024925,2]
[419691664,1775295043853,-500.0,0.00024925,2]
[419691666,1775295043863,-500.0,0.00024925,2]
[419691669,1775295043872,-500.0,0.00024925,2]
[419691672,1775295043882,-500.0,0.00024925,2]
[419691674,1775295043891,-604.16227893,0.00024925,2]
[419691677,1775295043900,-500.0,0.00024925,2]
[419691680,1775295043910,-500.0,0.00024925,2]
[419691683,1775295043920,-500.0,0.00024925,2]
[419691685,1775295043931,-211.63576522,0.00024925,2]
[419691687,1775295043941,-500.0,0.00024925,2]
[419691689,1775295043950,-500.0,0.00024925,2]
[419691691,1775295043960,-401.13154866,0.00024925,2]
[419691693,1775295043969,-151.5,0.00024925,2]
[419691695,1775295043979,-151.5,0.00024925,2]
[419691697,1775295043989,-290.65943425,0.00024925,2]
[419691699,1775295043999,-200.0,0.00024928,2]
[419691701,1775295044009,-448.828,0.00024943,8]
[419691703,1775295044018,-186.15207825,0.00024943,8]
[419691705,1775295044028,-536.37,0.00024944,2]
[419691707,1775295044038,-1060.18,0.00024944,2]
[419691709,1775295044047,-1086.82,0.00025044,7]
[419691711,1775295044057,-500.0,0.00025199,2]
[419691725,1775295044187,-500.0,0.00025199,2]
[419691727,1775295044201,-500.0,0.00025199,2]
[419691729,1775295044211,-500.0,0.00025199,2]
[419691731,1775295044220,-500.0,0.00025199,2]
[419691733,1775295044230,-500.0,0.00025199,2]
[419691735,1775295044239,-500.0,0.00025199,2]
[419691737,1775295044249,-500.0,0.00025199,2]
[419691739,1775295044259,-500.0,0.00025199,2]
[419691741,1775295044268,-500.0,0.00025199,2]
[419691743,1775295044278,-500.0,0.00025199,2]
[419691745,1775295044287,-500.0,0.00025199,2]
[419691747,1775295044297,-500.0,0.00025199,2]
[419691749,1775295044306,-429.23835317,0.00025199,2]
[419691751,1775295044316,-151.5,0.00025199,2]
[419691754,1775295044326,-500.0,0.00025199,2]
[419691756,1775295044336,-500.0,0.00025199,2]
[419691758,1775295044346,-151.5,0.00025199,2]
[419691760,1775295044356,-503.56131271,0.00025199,2]
[419691762,1775295044365,-151.5,0.00025199,2]
[419691763,1775295044375,-267.00855672,0.00025199,2]
[419691765,1775295044384,-260.11910553,0.00025199,2]
[419691767,1775295044394,-154.19255123,0.00025199,2]
[419691769,1775295044403,-151.5,0.00025199,2]
[419691771,1775295044412,-151.5,0.00025199,2]
[419691773,1775295044422,-194.72018615,0.00025199,2]
[419691775,1775295044431,-202.15029944,0.00025199,2]
[419691777,1775295044441,-500.0,0.00025199,2]
[419691779,1775295044451,-500.0,0.00025199,2]
[419691781,1775295044460,-500.0,0.00025199,2]
[419691783,1775295044470,-209.09481013,0.00025199,2]
[419691785,1775295044480,-552.98071095,0.000253,70]
[419691787,1775295044489,-2051.61366884,0.000253,70]
[419691789,1775295044499,-532.03761221,0.000253,70]
[419691791,1775295044508,-891.55495011,0.000253,70]
[419691793,1775295044518,-255.15904618,0.00025343,2]
[419691795,1775295044528,-291.6103385,0.00025343,2]
[419691797,1775295044541,-455.18551275,0.00025343,2]
[419691799,1775295044551,-152.79027183,0.00025429,2]
[419691801,1775295044560,-478.75725327,0.00025429,2]
[419691803,1775295044570,-174.61919142,0.00025429,2]
[419691805,1775295044579,-578.20924308,0.00025429,2]
[419691808,1775295044589,-119026.38622438,0.00025444,2]
[419691935,1775295046633,-13700.12653948,0.00025444,2]
[419691936,1775295046647,-1839.86753609,0.00025444,2]
[419691937,1775295046688,-331.12,0.00025444,2]
[419691945,1775295102590,1392.23636841,0.00034762,120]
[419691946,1775295284108,275.22851505,0.00034762,120]
[419691947,1775295284443,275.22851505,0.00034762,120]
[419691948,1775295804311,500.0,0.00034713,120]
[419691949,1775295804546,500.0,0.00034713,120]
[419691950,1775295804768,500.0,0.00034713,120]
[419691951,1775295804982,500.0,0.00034713,120]
[419691952,1775295805205,500.0,0.00034713,120]
[419691953,1775295805785,500.0,0.00034713,120]
[419691954,1775295806018,500.0,0.00034713,120]
[419691955,1775295806245,500.0,0.00034713,120]
[419691956,1775295806468,500.0,0.00034713,120]
[419691957,1775295806690,500.0,0.00034713,120]
[419691958,1775295806916,500.0,0.00034713,120]
[419691959,1775295807293,500.0,0.00034713,120]
[419691960,1775295807514,500.0,0.00034713,120]
[419691961,1775295807998,500.0,0.00034713,120]
[419691962,1775295808302,500.0,0.00034713,120]
[419691963,1775295808683,500.0,0.00034713,120]
[419691964,1775295808877,500.0,0.00034713,120]
[419691965,1775295809112,500.0,0.00034713,120]
[419691966,1775295809347,500.0,0.00034713,120]
[419691967,1775295809575,500.0,0.00034713,120]
[419691999,1775296232220,-1000.0,0.00013699,2]
[419692001,1775296232229,-250.0,0.00017084,2]
[419692003,1775296232238,-1620.9277175,0.00023693,2]
[419692005,1775296232247,-324.04,0.00024249,6]
[419692007,1775296232256,-270.83333333,0.0002425,2]
[419692009,1775296232265,-1314.77176873,0.00024544,2]
[419692011,1775296232275,-500.0,0.00024643,2]
[419692013,1775296232284,-500.0,0.00024643,2]
[419692015,1775296232293,-500.0,0.00024643,2]
[419692017,1775296232302,-268.30402137,0.00024643,2]
[419692019,1775296232311,-500.0,0.00024643,2]
[419692021,1775296232320,-526.88382379,0.00024643,2]
[419692023,1775296232329,-340.30671992,0.00024643,2]
[419692025,1775296232338,-105908.50310749,0.00024644,2]
[419692027,1775296232348,-670.00909895,0.00024644,2]
[419692108,1775296241158,-1656.53080664,0.00024644,2]
[419692109,1775296242418,-50583.42031463,0.00024644,2]
[419692110,1775296242430,-5675.334293,0.00024644,2]
[419692114,1775296243682,-1142.40594232,0.00024644,2]
[419692133,1775296246722,-2394.21451842,0.00024644,2]
[419692134,1775296383389,1000.0,0.00032,120]
[419692135,1775296880904,-103.14868231,0.00012603,2]
[419692136,1775296880929,-77.63817332,0.00012603,2]
[419692137,1775296880939,-103.14868231,0.00012603,2]
[419692144,1775297432572,-180.78685563,0.00012855,7]
[419692145,1775297432582,-745.54985723,0.00013426,2]
[419692146,1775297432593,-2060.70186435,0.00013426,2]
[419692147,1775297432605,-435.04111901,0.00013426,2]
[419692276,1775297446721,-536.79231808,0.00013426,2]
[419692277,1775297446732,-1221.91484133,0.00013426,2]
[419692278,1775297446741,-611.0,0.00013426,2]
[419692279,1775297446750,-1000.0,0.00013699,2]
[419692280,1775297446759,-349.57682603,0.00023527,2]
[419692281,1775297446769,-4569.09521722,0.00024067,2]
[419692301,1775297489279,1058.843275,0.00028185,120]
[419692315,1775297628286,211.768655,0.00027456,120]
[419692320,1775297703869,211.768655,0.0002744,120]
[419692355,1775298174785,211.768655,0.0002744,120]
[419692361,1775298617922,3877.45623276,0.00034708,120]
[419692441,1775298634046,-5000.0,0.00012486,2]
[419692442,1775298634055,-209.45506384,0.00012739,2]
[419692443,1775298634065,-180.78685562,0.00013233,14]
[419692444,1775298634074,-197.499,0.00013699,2]
[419692445,1775298634084,-1000.0,0.00013699,2]
[419692446,1775298634093,-657.03711554,0.00019178,2]
[419692474,1775298638954,-342.96288446,0.00019178,2]
[419692475,1775298638964,-1000.0,0.00019178,2]
[419692476,1775298638973,-1000.0,0.00019178,2]
[419692477,1775298638983,-1000.0,0.00019178,7]
[419692478,1775298638992,-1000.0,0.00019178,7]
[419692479,1775298639002,-562.90086389,0.00019178,7]
[419692480,1775298639011,-1511.4116114,0.00021727,2]
[419692481,1775298639021,-302.77257606,0.00022536,2]
[419692482,1775298639030,-1200.0,0.00022741,2]
[419692483,1775298639039,-183.02072377,0.00022742,2]
[419692484,1775298639048,-329.43730278,0.00022742,2]
[419692485,1775298639057,-585.66631606,0.00022742,2]
[419692486,1775298639066,-187.6636398,0.00023227,2]
[419692487,1775298639076,-255.0,0.00023539,2]
[419692488,1775298639085,-300.0,0.00023539,2]
[419692489,1775298639095,-300.0,0.00023539,2]
[419692490,1775298639104,-914.18851522,0.0002354,2]
[419692491,1775298639114,-450.41,0.00023827,2]
[419692492,1775298639123,-207.25052226,0.00023939,2]
[419692493,1775298639132,-373.05094006,0.00023939,2]
[419692494,1775298639142,-663.20167122,0.00023939,2]
[419692495,1775298639151,-194.5503452,0.00024037,2]
[419692496,1775298639161,-270.83333333,0.00024071,2]
[419692497,1775298639170,-578.20924308,0.00024171,2]
[419692498,1775298639180,-501.11398684,0.00024171,2]
[419692499,1775298639189,-173.50825543,0.00024171,2]
[419692500,1775298639199,-2312.83697232,0.00024171,2]
[419692501,1775298639208,-440.0,0.00024382,2]
[419692502,1775298639217,-23.11534642,0.00024382,2]
[419692584,1775298641717,-253.42265358,0.00024382,2]
[419692586,1775298641726,-214.0844901,0.00024681,2]
[419692588,1775298641736,-1077.1474717,0.00024691,2]
[419692590,1775298641745,-745.83562362,0.00024691,2]
[419692877,1775298644204,-214.08449011,0.00024681,2]
[419692879,1775298644213,-2355.89052418,0.00024691,2]
[419692881,1775298644223,-3613.4701514,0.00024691,2]
[419692883,1775298644232,-1035.21635867,0.00024779,2]
[419692885,1775298644241,-1680.0,0.00024808,2]
[419692887,1775298644251,-544.99063691,0.00024851,2]
[419692889,1775298644260,-182.91787737,0.00025199,2]
[419692891,1775298644269,-2073.84872606,0.000252,65]
[419692893,1775298644279,-922.33165674,0.000252,65]
[419692895,1775298644288,-1552.65,0.00025234,3]
[419692897,1775298644297,-776.32,0.00025234,3]
[419692899,1775298644307,-388.16,0.00025234,3]
[419692901,1775298644317,-194.08,0.00025234,3]
[419692902,1775298644327,-582.27,0.00025234,3]
[419692904,1775298644337,-500.0,0.00025243,2]
[419692907,1775298644347,-500.0,0.00025243,2]
[419692909,1775298644357,-500.0,0.00025243,2]
[419692911,1775298644369,-500.0,0.00025243,2]
[419692913,1775298644381,-388.68124964,0.00025243,2]
[419692915,1775298644394,-500.0,0.00025243,2]
[419692918,1775298644405,-500.0,0.00025243,2]
[419692920,1775298644418,-428.0090222,0.00025243,2]
[419692922,1775298644430,-500.0,0.00025243,2]
[419692925,1775298644441,-295.61419266,0.00025243,2]
[419692927,1775298644451,-500.0,0.00025243,2]
[419692929,1775298644462,-500.0,0.00025243,2]
[419692931,1775298644473,-500.0,0.00025243,2]
[419692933,1775298644485,-500.0,0.00025243,2]
[419692935,1775298644496,-500.0,0.00025243,2]
[419692937,1775298644507,-500.0,0.00025243,2]
[419692940,1775298644519,-500.0,0.00025243,2]
[419692942,1775298644530,-323.72141682,0.00025243,2]
[419692944,1775298644541,-500.0,0.00025243,2]
[419692946,1775298644553,-500.0,0.00025243,2]
[419692949,1775298644565,-215.91646739,0.00025243,2]
[419692951,1775298644576,-500.0,0.00025243,2]
[419692953,1775298644587,-500.0,0.00025243,2]
[419692955,1775298644597,-500.0,0.00025243,2]
[419692957,1775298644609,-500.0,0.00025243,2]
[419692960,1775298644620,-500.0,0.00025243,2]
[419692962,1775298644630,-461.91935785,0.00025243,2]
[419692964,1775298644641,-500.0,0.00025243,2]
[419692966,1775298644652,-500.0,0.00025243,2]
[419692968,1775298644663,-629.42512055,0.00025243,2]
[419692970,1775298644675,-500.0,0.00025243,2]
[419692972,1775298644686,-500.0,0.00025243,2]
[419692975,1775298644697,-567.88297752,0.00025243,2]
[419692977,1775298644708,-500.0,0.00025243,2]
[419692979,1775298644719,-500.0,0.00025243,2]
[419692981,1775298644729,-500.0,0.00025243,2]
[419692983,1775298644739,-500.0,0.00025243,2]
[419692985,1775298644749,-500.0,0.00025243,2]
[419692987,1775298644759,-500.0,0.00025243,2]
[419692989,1775298644770,-500.0,0.00025243,2]
[419692991,1775298644781,-500.0,0.00025243,2]
[419692993,1775298644791,-500.0,0.00025243,2]
[419692996,1775298644803,-500.0,0.00025243,2]
[419692998,1775298644814,-500.0,0.00025243,2]
[419693000,1775298644827,-628.06999345,0.00025243,2]
[419693002,1775298644838,-200.0,0.00025244,2]
[419693005,1775298644850,-753786.93007583,0.00025244,2]
[419693007,1775298644861,-666.07,0.00025244,2]
[419693009,1775298644872,-500.0,0.00025273,2]
[419693011,1775298644884,-531.42002258,0.000253,69]
[419693013,1775298644894,-500.0,0.00025343,2]
[419693015,1775298644905,-500.0,0.00025343,2]
[419693017,1775298644917,-500.67170058,0.00025343,2]
[419693020,1775298644929,-259.232,0.00025344,9]
[419693022,1775298644940,-14419.13427653,0.00025344,2]
[419693024,1775298644951,-487.0,0.00025344,2]
[419693026,1775298644963,-487.0,0.00025344,2]
[419693028,1775298644974,-487.0,0.00025344,2]
[419693031,1775298644984,-530.76,0.00025344,2]
[419693033,1775298644994,-422.87338538,0.00025351,2]
[419693035,1775298645003,-180.8462068,0.00025429,2]
[419693037,1775298645013,-151.0,0.00025429,2]
[419693039,1775298645023,-151.0,0.00025429,2]
[419693041,1775298645033,-151.0,0.00025429,2]
[419693043,1775298645043,-151.0,0.00025429,2]
[419693045,1775298645055,-151.0,0.00025429,2]
[419693047,1775298645066,-151.0,0.00025429,2]
[419693049,1775298645077,-151.0,0.00025429,2]
[419693051,1775298645087,-151.0,0.00025429,2]
[419693053,1775298645096,-151.0,0.00025429,2]
[419693056,1775298645107,-151.0,0.00025429,2]
[419693058,1775298645118,-151.0,0.00025429,2]
[419693060,1775298645129,-151.18324943,0.00025429,2]
[419693062,1775298645140,-151.0,0.00025429,2]
[419693063,1775298645151,-151.0,0.00025429,2]
[419693064,1775298645162,-151.0,0.00025429,2]
[419693065,1775298645173,-151.0,0.00025429,2]
[419693066,1775298645183,-151.0,0.00025429,2]
[419693067,1775298645194,-151.0,0.00025429,2]
[419693068,1775298645205,-151.0,0.00025429,2]
[419693069,1775298645216,-151.0,0.00025429,2]
[419693070,1775298645227,-174.02065082,0.00025429,2]
[419693071,1775298645237,-200.0,0.00025443,2]
[419693072,1775298645247,-676764.25762076,0.00025444,2]
[419693212,1775298797473,500.0,0.00034753,120]
[419693213,1775298797694,500.0,0.00034753,120]
[419693214,1775298797899,500.0,0.00034753,120]
[419693215,1775298798115,500.0,0.00034753,120]
[419693216,1775298798330,500.0,0.00034753,120]
[419693217,1775298798595,500.0,0.00034753,120]
[419693218,1775298798811,500.0,0.00034753,120]
[419693219,1775298799041,565.72372605,0.00034753,120]
[419693224,1775299051898,38152.83149828,0.00034716,120]
[419693225,1775299176636,556.2935531,0.00032,120]
[419693226,1775299255581,500.0,0.00034716,120]
[419693227,1775299255794,617.19301366,0.00034716,120]
[419693228,1775299424770,263.0,0.00034716,120]
[419693482,1775299841708,-1000.0,0.00013699,2]
[419693484,1775299841718,-615.0,0.00013699,2]
[419693486,1775299841727,-1035.21635867,0.00020183,2]
[419693488,1775299841737,-451.75406886,0.00021307,2]
[419693490,1775299841747,-270.83333333,0.00023,2]
[419693492,1775299841756,-170.0,0.00023,7]
[419693494,1775299841766,-176.2421874,0.00023311,2]
[419693496,1775299841776,-209.829563,0.00023665,2]
[419693498,1775299841786,-1150.42529763,0.00024928,2]
[419693500,1775299841795,-300.0,0.00024932,2]
[419693502,1775299841805,-300.0,0.00024932,2]
[419693504,1775299841814,-242.0,0.00024932,2]
[419693506,1775299841823,-970.4,0.00024933,3]
[419693508,1775299841832,-485.2,0.00024933,3]
[419693510,1775299841841,-242.6,0.00024933,3]
[419693512,1775299841851,-727.82,0.00024933,3]
[419693514,1775299841861,-3188.36966455,0.00024943,2]
[419693671,1775299843527,-74712.36251548,0.00024943,2]
[419693673,1775299843538,-13573.06630091,0.00024943,2]
[419693777,1775299846309,-45411.67508818,0.00024943,2]
[419693778,1775299846367,-1544.58914564,0.00024943,2]
[419693779,1775299846430,-7830.0025966,0.00024943,2]
[419693783,1775300450951,284000.00000001,0.00032877,120]
[419693784,1775300499824,-611.0,0.00013424,2]
[419693785,1775300499880,-674.85131769,0.00013425,2]
[419693786,1775300529794,-611.0,0.00013425,2]
[419694047,1775301043310,-300.0,0.00013057,2]
[419694048,1775301043320,-242.0,0.00013057,2]
[419694049,1775301043330,-300.0,0.00013057,2]
[419694050,1775301043339,-5000.0,0.00013058,2]
[419694051,1775301043348,-605.0,0.00013058,2]
[419694052,1775301043359,-451.75406886,0.00013324,2]
[419694053,1775301043369,-160.0,0.00013425,2]
[419694054,1775301043378,-1000.0,0.00013699,2]
[419694055,1775301043387,-420.0,0.00014318,2]
[419694056,1775301043397,-587.0,0.00015702,2]
[419694057,1775301043406,-160.0,0.00017218,2]
[419694058,1775301043416,-3073.53898366,0.00018,2]
[419694059,1775301043425,-622.07687475,0.00021999,2]
[419694060,1775301043434,-170.0,0.00022,2]
[419694061,1775301043444,-57395.26268331,0.00022,2]
[419694092,1775302238365,-1328.38877947,0.00012897,2]
[419694308,1775302243718,-3671.61122053,0.00012897,2]
[419694309,1775302243728,-1000.0,0.00013699,2]
[419694310,1775302243738,-329.25217926,0.00018693,2]
[419694311,1775302243748,-585.33720758,0.00018693,2]
[419694312,1775302243758,-913.67479746,0.00019516,2]
[419694313,1775302243767,-422.87338538,0.00019676,2]
[419694314,1775302243776,-761.17209369,0.00019676,2]
[419694315,1775302243786,-1353.19483322,0.00019676,2]
[419694316,1775302243795,-176.2421874,0.00020241,2]
[419694317,1775302243805,-2112.25255998,0.00020543,2]
[419694318,1775302243815,-4569.0952172,0.00020652,2]
[419694319,1775302243825,-968.8722434,0.00021802,2]
[419694320,1775302243834,-1512.34901744,0.00021802,2]
[419694321,1775302243843,-209.829563,0.00021918,2]
[419694322,1775302243853,-970.4,0.0002199,3]
[419694323,1775302243862,-485.2,0.0002199,3]
[419694324,1775302243871,-242.6,0.0002199,3]
[419694325,1775302243881,-727.82,0.0002199,3]
[419694326,1775302243890,-500.0,0.00021999,2]
[419694327,1775302243899,-528.61056823,0.00021999,2]
[419694328,1775302243909,-162.43548421,0.00021999,2]
[419694329,1775302243919,-500.0,0.00021999,2]
[419694330,1775302243928,-165.71400449,0.00021999,2]
[419694331,1775302243938,-500.0,0.00021999,2]
[419694332,1775302243947,-500.0,0.00021999,2]
[419694333,1775302243957,-500.0,0.00021999,2]
[419694334,1775302243966,-500.0,0.00021999,2]
[419694335,1775302243975,-500.0,0.00021999,2]
[419694336,1775302243985,-285.32033084,0.00021999,2]
[419694337,1775302243994,-500.0,0.00021999,2]
[419694338,1775302244003,-500.0,0.00021999,2]
[419694339,1775302244013,-500.0,0.00021999,2]
[419694340,1775302244022,-557.39290024,0.00021999,2]
[419694341,1775302244033,-40753.90899052,0.00022,2]
[419694346,1775302246757,-7830.03282192,0.00022,2]
[419694348,1775302837060,513.565,0.00034709,120]
[419694349,1775302837251,513.565,0.00034709,120]
[419694380,1775303432344,-451.75406886,0.00013599,2]
[419694382,1775303432353,-156.49285136,0.00013599,2]
[419694384,1775303432365,-457.50714864,0.00013599,2]
[419694386,1775303432374,-1000.0,0.00013699,2]
[419694388,1775303432384,-300.0,0.00018692,2]
[419694390,1775303432393,-300.0,0.00018692,2]
[419694392,1775303432402,-242.0,0.00018692,2]
[419694394,1775303432411,-457.67566708,0.00018693,2]
[419694396,1775303432421,-823.81620075,0.00018693,2]
[419694398,1775303432430,-1243.12327287,0.00018693,2]
[419694400,1775303432440,-221.43886179,0.00018693,2]
[419694402,1775303432449,-2159.68844656,0.00018693,2]
[419694438,1775303438553,-128.68988884,0.00018693,2]
[419694440,1775303438563,-1213.11011116,0.00018693,2]
[419694622,1775304149043,500.0,0.00034767,120]
[419694623,1775304149260,500.0,0.00034767,120]
[419694624,1775304149475,500.0,0.00034767,120]
[419694625,1775304149710,500.0,0.00034767,120]
[419694626,1775304149924,500.0,0.00034767,120]
[419694627,1775304150136,500.0,0.00034767,120]
[419694628,1775304150381,500.0,0.00034767,120]
[419694629,1775304150598,500.0,0.00034767,120]
[419694630,1775304150947,500.0,0.00034767,120]
[419694631,1775304151313,500.0,0.00034767,120]
[419694632,1775304151559,500.0,0.00034767,120]
[419694633,1775304151776,500.0,0.00034767,120]
[419694634,1775304151990,206.63328001,0.00034767,120]
[419694635,1775304261014,199999.50957599,0.00032877,120]
[419694745,1775304638800,-300.0,0.00013693,2]
[419694747,1775304638809,-300.0,0.00013694,2]
[419694748,1775304638818,-300.0,0.00013694,2]
[419694749,1775304638828,-300.0,0.00013694,2]
[419694751,1775304638838,-142.7,0.00013694,2]
[419694752,1775304638850,-157.3,0.00013694,2]
[419694753,1775304638858,-300.0,0.00013694,2]
[419694754,1775304638867,-213.74,0.00013694,2]
[419694755,1775304638904,-86.26,0.00013694,2]
[419694756,1775304638913,-300.0,0.00013694,2]
[419694757,1775304638922,-300.0,0.00013694,2]
[419694758,1775304638932,-300.0,0.00013694,2]
[419694759,1775304638941,-300.0,0.00013694,2]
[419694760,1775304638950,-300.0,0.00013694,2]
[419694761,1775304638959,-300.0,0.00013694,2]
[419694762,1775304638968,-300.0,0.00013694,2]
[419694763,1775304638977,-300.0,0.00013694,2]
[419694764,1775304638986,-300.0,0.00013694,2]
[419694765,1775304638995,-1000.0,0.00013699,2]
[419694766,1775304639004,-420.0,0.00015006,2]
[419694767,1775304639013,-1668.85002545,0.00015225,2]
[419695055,1775304647010,-410.00940157,0.00015225,2]
[419695056,1775304647019,-430.84738002,0.00015225,2]
[419695057,1775304647029,-775.52528404,0.00015225,2]
[419695058,1775304647039,-1378.71161607,0.00015225,2]
[419695059,1775304647047,-2107.12632862,0.00015225,2]
[419695060,1775304647059,-44.95633459,0.00015225,2]
[419695061,1775304647068,-319.86307157,0.00016027,2]